[Event "Titled Tuesday Blitz February 21 Late 2023"]
[White "Herbst, Richard"]
[Black "Danielyan, Vahe"]
[WhiteFideId "2041251"]
[BlackFideId "13304828"]
[WhiteElo "2120"]
[BlackElo "2346"]
[Result "1-0"]
[Round "01"]
[TimeControl "180+2"]
[Date "2023.02.21"]
[WhiteClock "0:01:11"]
[BlackClock "0:00:02"]

1. e4 {[%clk 0:02:59]}  c6 {[%clk 0:02:45]} 2. Nc3 {[%clk 0:02:58]}  d5 {[%clk 0:02:45]} 3. Nf3 {[%clk 0:02:58]}  Bg4 {[%clk 0:02:44]} 4. h3 {[%clk 0:02:59]}  Bxf3 {[%clk 0:02:43]} 5. Qxf3 {[%clk 0:02:58]}  e6 {[%clk 0:02:44]} 6. d3 {[%clk 0:02:53]}  Nd7 {[%clk 0:02:44]} 7. g3 {[%clk 0:02:54]}  Bb4 {[%clk 0:02:44]} 8. Bd2 {[%clk 0:02:53]}  Ne7 {[%clk 0:02:44]} 9. a3 {[%clk 0:02:54]}  Ba5 {[%clk 0:02:44]} 10. Bg2 {[%clk 0:02:54]}  O-O {[%clk 0:02:43]} 11. Qe2 {[%clk 0:02:54]}  d4 {[%clk 0:02:41]} 12. Nd1 {[%clk 0:02:54]}  Bc7 {[%clk 0:02:42]} 13. f4 {[%clk 0:02:53]}  f5 {[%clk 0:02:42]} 14. Nf2 {[%clk 0:02:52]}  h6 {[%clk 0:02:36]} 15. O-O {[%clk 0:02:52]}  Nf6 {[%clk 0:02:12]} 16. c3 {[%clk 0:02:47]}  Bb6 {[%clk 0:02:03]} 17. c4 {[%clk 0:02:44]}  a5 {[%clk 0:01:57]} 18. e5 {[%clk 0:02:45]}  Nd7 {[%clk 0:01:55]} 19. b4 {[%clk 0:02:43]}  Qe8 {[%clk 0:01:53]} 20. Rfc1 {[%clk 0:02:36]}  Qg6 {[%clk 0:01:54]} 21. Kh2 {[%clk 0:02:36]}  Kh7 {[%clk 0:01:53]} 22. Bf3 {[%clk 0:02:29]}  Qf7 {[%clk 0:01:50]} 23. Qf1 {[%clk 0:02:29]}  Bc7 {[%clk 0:01:46]} 24. Qg2 {[%clk 0:02:29]}  g5 {[%clk 0:01:44]} 25. Qf1 {[%clk 0:02:28]}  Rg8 {[%clk 0:01:43]} 26. Qe2 {[%clk 0:02:28]}  Rg7 {[%clk 0:01:42]} 27. Bh5 {[%clk 0:02:28]}  Qg8 {[%clk 0:01:42]} 28. Rg1 {[%clk 0:02:28]}  Rf8 {[%clk 0:01:39]} 29. Raf1 {[%clk 0:02:23]}  axb4 {[%clk 0:01:38]} 30. axb4 {[%clk 0:02:23]}  b5 {[%clk 0:01:28]} 31. Ra1 {[%clk 0:02:21]}  bxc4 {[%clk 0:01:28]} 32. dxc4 {[%clk 0:02:21]}  Ng6 {[%clk 0:01:16]} 33. Nd3 {[%clk 0:02:20]}  gxf4 {[%clk 0:01:13]} 34. gxf4 {[%clk 0:02:19]}  Nh4 {[%clk 0:01:13]} 35. Rxg7+ {[%clk 0:02:18]}  Qxg7 {[%clk 0:01:14]} 36. Ra7 {[%clk 0:02:15]}  Rg8 {[%clk 0:01:13]} 37. Qf2 {[%clk 0:02:12]}  Qg2+ {[%clk 0:00:35]} 38. Qxg2 {[%clk 0:02:10]}  Rxg2+ {[%clk 0:00:36]} 39. Kh1 {[%clk 0:02:10]}  Rxd2 {[%clk 0:00:37]} 40. Rxc7 {[%clk 0:02:10]}  Rxd3 {[%clk 0:00:37]} 41. Rxd7+ {[%clk 0:02:10]}  Kh8 {[%clk 0:00:37]} 42. Rd6 {[%clk 0:01:59]}  Rxh3+ {[%clk 0:00:35]} 43. Kg1 {[%clk 0:01:58]}  Rb3 {[%clk 0:00:29]} 44. Rxe6 {[%clk 0:01:53]}  d3 {[%clk 0:00:26]} 45. Rxh6+ {[%clk 0:01:51]}  Kg7 {[%clk 0:00:26]} 46. Rxc6 {[%clk 0:01:51]}  Rxb4 {[%clk 0:00:19]} 47. Kf2 {[%clk 0:01:50]}  Rb2+ {[%clk 0:00:16]} 48. Ke3 {[%clk 0:01:43]}  Ng2+ {[%clk 0:00:16]} 49. Kxd3 {[%clk 0:01:40]}  Nxf4+ {[%clk 0:00:16]} 50. Kc3 {[%clk 0:01:41]}  Rb1 {[%clk 0:00:10]} 51. Bf3 {[%clk 0:01:37]}  Rc1+ {[%clk 0:00:10]} 52. Kd4 {[%clk 0:01:27]}  Rf1 {[%clk 0:00:07]} 53. Bd5 {[%clk 0:01:24]}  Ng6 {[%clk 0:00:05]} 54. Rc7+ {[%clk 0:01:19]}  Kh6 {[%clk 0:00:05]} 55. e6 {[%clk 0:01:15]}  Re1 {[%clk 0:00:04]} 56. c5 {[%clk 0:01:14]}  f4 {[%clk 0:00:05]} 57. c6 {[%clk 0:01:14]}  Nh4 {[%clk 0:00:03]} 58. Rf7 {[%clk 0:01:12]}  Kg5 {[%clk 0:00:02]} 59. c7 {[%clk 0:01:11]} 1-0


[Site "https://www.chess.com"]

[Event "Titled Tuesday Blitz February 21 Late 2023"]
[White "De Souza, Cristiano Gomes"]
[Black "Richter, Paul"]
[WhiteFideId "2151758"]
[BlackFideId "2046350"]
[WhiteElo "2018"]
[BlackElo "2171"]
[Result "0-1"]
[Round "01"]
[TimeControl "180+2"]
[Date "2023.02.21"]
[WhiteClock "0:00:18"]
[BlackClock "0:00:13"]

1. d4 {[%clk 0:02:59]}  Nf6 {[%clk 0:02:59]} 2. c4 {[%clk 0:02:58]}  g6 {[%clk 0:02:59]} 3. Nf3 {[%clk 0:02:58]}  Bg7 {[%clk 0:02:59]} 4. Nc3 {[%clk 0:02:58]}  O-O {[%clk 0:02:59]} 5. e4 {[%clk 0:02:58]}  d6 {[%clk 0:02:59]} 6. Be2 {[%clk 0:02:59]}  Na6 {[%clk 0:02:59]} 7. O-O {[%clk 0:02:58]}  e5 {[%clk 0:02:59]} 8. d5 {[%clk 0:02:57]}  Nc5 {[%clk 0:02:59]} 9. Nd2 {[%clk 0:02:58]}  a5 {[%clk 0:02:59]} 10. b3 {[%clk 0:02:58]}  Bh6 {[%clk 0:02:50]} 11. Qc2 {[%clk 0:02:57]}  Bd7 {[%clk 0:02:34]} 12. Rb1 {[%clk 0:02:57]}  Ne8 {[%clk 0:02:29]} 13. a3 {[%clk 0:02:56]}  f5 {[%clk 0:02:29]} 14. b4 {[%clk 0:02:56]}  axb4 {[%clk 0:02:29]} 15. axb4 {[%clk 0:02:55]}  Bxd2 {[%clk 0:02:12]} 16. Bxd2 {[%clk 0:02:51]}  Nxe4 {[%clk 0:02:12]} 17. Nxe4 {[%clk 0:02:50]}  fxe4 {[%clk 0:02:13]} 18. Be3 {[%clk 0:02:46]}  Nf6 {[%clk 0:01:56]} 19. h3 {[%clk 0:02:44]}  Qe7 {[%clk 0:01:48]} 20. Ra1 {[%clk 0:02:39]}  b6 {[%clk 0:01:45]} 21. Kh2 {[%clk 0:02:29]}  Kg7 {[%clk 0:01:20]} 22. Bg5 {[%clk 0:02:24]}  Bf5 {[%clk 0:01:17]} 23. Bxf6+ {[%clk 0:02:20]}  Qxf6 {[%clk 0:01:14]} 24. g4 {[%clk 0:02:20]}  Bd7 {[%clk 0:01:08]} 25. Rxa8 {[%clk 0:02:19]}  Rxa8 {[%clk 0:01:07]} 26. Qxe4 {[%clk 0:02:18]}  Ra2 {[%clk 0:01:04]} 27. Kg3 {[%clk 0:02:07]}  g5 {[%clk 0:01:01]} 28. Bd3 {[%clk 0:02:04]}  Qf4+ {[%clk 0:00:56]} 29. Qxf4 {[%clk 0:02:02]}  exf4+ {[%clk 0:00:51]} 30. Kf3 {[%clk 0:02:00]}  h6 {[%clk 0:00:46]} 31. Rc1 {[%clk 0:01:58]}  Ra3 {[%clk 0:00:41]} 32. Ke2 {[%clk 0:01:57]}  Ra2+ {[%clk 0:00:29]} 33. Rc2 {[%clk 0:01:55]}  Rxc2+ {[%clk 0:00:29]} 34. Bxc2 {[%clk 0:01:54]}  Kf6 {[%clk 0:00:30]} 35. Be4 {[%clk 0:01:47]}  Ke5 {[%clk 0:00:30]} 36. Kd3 {[%clk 0:01:48]}  b5 {[%clk 0:00:20]} 37. c5 {[%clk 0:01:32]}  dxc5 {[%clk 0:00:21]} 38. bxc5 {[%clk 0:01:32]}  b4 {[%clk 0:00:21]} 39. c6 {[%clk 0:01:29]}  Bc8 {[%clk 0:00:21]} 40. f3 {[%clk 0:01:24]}  Ba6+ {[%clk 0:00:21]} 41. Kc2 {[%clk 0:01:23]}  Kd4 {[%clk 0:00:18]} 42. Kb3 {[%clk 0:01:22]}  Kc5 {[%clk 0:00:16]} 43. Kb2 {[%clk 0:01:03]}  Bc4 {[%clk 0:00:15]} 44. d6 {[%clk 0:00:19]}  Kxd6 {[%clk 0:00:14]} 45. Kc2 {[%clk 0:00:19]}  Kc5 {[%clk 0:00:13]} 46. Kb2 {[%clk 0:00:18]}  Bd5 {[%clk 0:00:12]} 47. Bxd5 {[%clk 0:00:16]}  Kxd5 {[%clk 0:00:13]} 48. Kb3 {[%clk 0:00:16]}  Kc5 {[%clk 0:00:13]} 49. Ka4 {[%clk 0:00:16]}  Kc4 {[%clk 0:00:13]} 50. Ka5 {[%clk 0:00:16]}  b3 {[%clk 0:00:12]} 51. Ka6 {[%clk 0:00:17]}  Kd5 {[%clk 0:00:13]} 52. Kb7 {[%clk 0:00:18]}  Kd6 {[%clk 0:00:13]} 0-1


[Site "https://www.chess.com"]

[Event "Titled Tuesday Blitz February 21 Late 2023"]
[White "Pinheiro, Iung Alicio de O."]
[Black "Mendez Machado, Andre"]
[WhiteFideId "2104350"]
[BlackFideId "6603793"]
[WhiteElo "2306"]
[BlackElo "1974"]
[Result "1-0"]
[Round "01"]
[TimeControl "180+2"]
[Date "2023.02.21"]
[WhiteClock "0:00:16"]
[BlackClock "0:00:02"]

1. e4 {[%clk 0:02:48]}  e5 {[%clk 0:02:59]} 2. Bc4 {[%clk 0:02:46]}  Nc6 {[%clk 0:02:56]} 3. d3 {[%clk 0:02:47]}  Nf6 {[%clk 0:02:55]} 4. Nc3 {[%clk 0:02:46]}  Bc5 {[%clk 0:02:53]} 5. f4 {[%clk 0:02:43]}  d6 {[%clk 0:02:53]} 6. Nf3 {[%clk 0:02:44]}  Bg4 {[%clk 0:02:46]} 7. h3 {[%clk 0:02:37]}  Bxf3 {[%clk 0:02:44]} 8. Qxf3 {[%clk 0:02:37]}  Nd4 {[%clk 0:02:45]} 9. Qg3 {[%clk 0:02:38]}  Nxc2+ {[%clk 0:02:27]} 10. Kd1 {[%clk 0:02:36]}  Nh5 {[%clk 0:02:13]} 11. Qg4 {[%clk 0:02:29]}  Nxa1 {[%clk 0:02:10]} 12. Qxh5 {[%clk 0:02:22]}  g6 {[%clk 0:02:08]} 13. Qh6 {[%clk 0:02:19]}  c6 {[%clk 0:01:29]} 14. Rf1 {[%clk 0:01:51]}  Qf6 {[%clk 0:00:32]} 15. Rf3 {[%clk 0:01:42]}  O-O-O {[%clk 0:00:24]} 16. f5 {[%clk 0:00:33]}  b5 {[%clk 0:00:13]} 17. Bg5 {[%clk 0:00:32]}  Qxg5 {[%clk 0:00:08]} 18. Qxg5 {[%clk 0:00:32]}  bxc4 {[%clk 0:00:09]} 19. Kc1 {[%clk 0:00:26]}  cxd3 {[%clk 0:00:08]} 20. Rxd3 {[%clk 0:00:24]}  gxf5 {[%clk 0:00:07]} 21. Qxf5+ {[%clk 0:00:24]}  Kb8 {[%clk 0:00:08]} 22. Kb1 {[%clk 0:00:24]}  Rhg8 {[%clk 0:00:07]} 23. g4 {[%clk 0:00:24]}  Nb3 {[%clk 0:00:04]} 24. axb3 {[%clk 0:00:24]}  Bd4 {[%clk 0:00:04]} 25. Ne2 {[%clk 0:00:24]}  Bc5 {[%clk 0:00:03]} 26. Qxh7 {[%clk 0:00:20]}  Rh8 {[%clk 0:00:03]} 27. Qf5 {[%clk 0:00:20]}  f6 {[%clk 0:00:02]} 28. Nc3 {[%clk 0:00:17]}  Kc7 {[%clk 0:00:02]} 29. Na4 {[%clk 0:00:17]}  Bb6 {[%clk 0:00:02]} 30. b4 {[%clk 0:00:17]}  Rdf8 {[%clk 0:00:01]} 31. Rc3 {[%clk 0:00:17]}  Kb7 {[%clk 0:00:01]} 32. b5 {[%clk 0:00:17]}  Rc8 {[%clk 0:00:01]} 33. Qd7+ {[%clk 0:00:16]}  Rc7 {[%clk 0:00:01]} 34. bxc6+ {[%clk 0:00:17]}  Kb8 {[%clk 0:00:01]} 35. Qe6 {[%clk 0:00:17]}  Rhc8 {[%clk 0:00:01]} 36. Nxb6 {[%clk 0:00:17]}  axb6 {[%clk 0:00:02]} 37. Qxd6 {[%clk 0:00:18]}  Ka7 {[%clk 0:00:02]} 38. Ra3+ {[%clk 0:00:18]}  Kb8 {[%clk 0:00:03]} 39. Ra6 {[%clk 0:00:17]}  b5 {[%clk 0:00:02]} 40. Rb6+ {[%clk 0:00:17]}  Ka7 {[%clk 0:00:03]} 41. Qc5 {[%clk 0:00:17]}  Ka8 {[%clk 0:00:03]} 42. Qxb5 {[%clk 0:00:17]}  Ra7 {[%clk 0:00:03]} 43. Ra6 {[%clk 0:00:17]}  Rc7 {[%clk 0:00:03]} 44. Rxa7+ {[%clk 0:00:17]}  Rxa7 {[%clk 0:00:04]} 45. Qb6 {[%clk 0:00:17]}  Ra4 {[%clk 0:00:02]} 46. Qb7# {[%clk 0:00:16]} 1-0


[Site "https://www.chess.com"]

[Event "Titled Tuesday Blitz February 21 Late 2023"]
[White "Leonte, Sebastian-Marian"]
[Black "Veiga, Jose Francisco R P Neves"]
[WhiteFideId "1268767"]
[BlackFideId "1930087"]
[WhiteElo "1279"]
[BlackElo "2406"]
[Result "1-0"]
[Round "01"]
[TimeControl "180+2"]
[Date "2023.02.21"]
[WhiteClock "0:01:29"]
[BlackClock "0:01:26"]

1. e4 {[%clk 0:02:59]}  Nc6 {[%clk 0:02:47]} 2. Nf3 {[%clk 0:02:55]}  e5 {[%clk 0:02:25]} 3. Bb5 {[%clk 0:02:53]}  Nge7 {[%clk 0:02:25]} 4. c3 {[%clk 0:02:45]}  g6 {[%clk 0:02:19]} 5. d4 {[%clk 0:02:44]}  exd4 {[%clk 0:02:18]} 6. cxd4 {[%clk 0:02:44]}  d5 {[%clk 0:02:18]} 7. exd5 {[%clk 0:02:26]}  Nxd5 {[%clk 0:02:15]} 8. O-O {[%clk 0:02:26]}  Be7 {[%clk 0:01:44]} 9. Bh6 {[%clk 0:02:24]}  Bg4 {[%clk 0:01:42]} 10. h3 {[%clk 0:02:20]}  Be6 {[%clk 0:01:40]} 11. Ne5 {[%clk 0:02:11]}  Qd6 {[%clk 0:01:39]} 12. Nc3 {[%clk 0:01:53]}  Nxc3 {[%clk 0:01:37]} 13. bxc3 {[%clk 0:01:54]}  f6 {[%clk 0:01:37]} 14. Nc4 {[%clk 0:01:33]}  Qd5 {[%clk 0:01:32]} 15. Qa4 {[%clk 0:01:31]}  Kf7 {[%clk 0:01:31]} 16. Ne3 {[%clk 0:01:29]}  Qd6 {[%clk 0:01:26]} 17. d5 {[%clk 0:01:29]} 1-0


[Site "https://www.chess.com"]

[Event "Titled Tuesday Blitz February 21 Late 2023"]
[White "Kohler, Aran"]
[Black "Fieberg, Samuel"]
[WhiteFideId "1002856"]
[BlackFideId "12901717"]
[WhiteElo "2010"]
[BlackElo "2157"]
[Result "0-1"]
[Round "01"]
[TimeControl "180+2"]
[Date "2023.02.21"]
[WhiteClock "0:01:29"]
[BlackClock "0:01:42"]

1. Nf3 {[%clk 0:02:58]}  d5 {[%clk 0:03:00]} 2. d4 {[%clk 0:02:58]}  c5 {[%clk 0:03:00]} 3. c3 {[%clk 0:02:55]}  Nf6 {[%clk 0:02:59]} 4. Bf4 {[%clk 0:02:54]}  Nc6 {[%clk 0:02:58]} 5. e3 {[%clk 0:02:54]}  Nh5 {[%clk 0:02:52]} 6. Bg3 {[%clk 0:02:46]}  Nxg3 {[%clk 0:02:52]} 7. hxg3 {[%clk 0:02:45]}  Qb6 {[%clk 0:02:53]} 8. b3 {[%clk 0:02:43]}  Bf5 {[%clk 0:02:47]} 9. Nbd2 {[%clk 0:02:42]}  e6 {[%clk 0:02:46]} 10. Nh4 {[%clk 0:02:40]}  cxd4 {[%clk 0:02:35]} 11. exd4 {[%clk 0:02:35]}  O-O-O {[%clk 0:02:21]} 12. Nxf5 {[%clk 0:02:34]}  exf5 {[%clk 0:02:21]} 13. Bd3 {[%clk 0:02:29]}  g6 {[%clk 0:02:21]} 14. O-O {[%clk 0:02:26]}  Kb8 {[%clk 0:02:21]} 15. a4 {[%clk 0:02:25]}  h5 {[%clk 0:02:19]} 16. Re1 {[%clk 0:02:22]}  h4 {[%clk 0:02:18]} 17. g4 {[%clk 0:02:20]}  h3 {[%clk 0:02:16]} 18. gxf5 {[%clk 0:02:12]}  hxg2 {[%clk 0:02:14]} 19. Kxg2 {[%clk 0:02:12]}  gxf5 {[%clk 0:02:04]} 20. Rh1 {[%clk 0:02:11]}  Bd6 {[%clk 0:02:00]} 21. Rxh8 {[%clk 0:02:07]}  Rxh8 {[%clk 0:02:01]} 22. Nf3 {[%clk 0:02:05]}  Qd8 {[%clk 0:01:55]} 23. Qc2 {[%clk 0:01:59]}  Qg8+ {[%clk 0:01:53]} 24. Kf1 {[%clk 0:01:51]}  Rh1+ {[%clk 0:01:52]} 25. Ke2 {[%clk 0:01:51]}  Rxa1 {[%clk 0:01:50]} 26. Bxf5 {[%clk 0:01:36]}  Bf4 {[%clk 0:01:44]} 27. Qb2 {[%clk 0:01:29]}  Qe8+ {[%clk 0:01:42]} 0-1


[Site "https://www.chess.com"]

[Event "Titled Tuesday Blitz February 21 Late 2023"]
[White "Martynov, Pavel"]
[Black "Wang, Alexander J"]
[WhiteFideId "4101260"]
[BlackFideId "30955270"]
[WhiteElo "2414"]
[BlackElo "1815"]
[Result "1-0"]
[Round "01"]
[TimeControl "180+2"]
[Date "2023.02.21"]
[WhiteClock "0:01:10"]
[BlackClock "0:01:08"]

1. e4 {[%clk 0:03:00]}  c5 {[%clk 0:02:58]} 2. Nf3 {[%clk 0:03:00]}  d6 {[%clk 0:02:58]} 3. Bb5+ {[%clk 0:03:00]}  Bd7 {[%clk 0:02:52]} 4. Bxd7+ {[%clk 0:03:00]}  Qxd7 {[%clk 0:02:53]} 5. O-O {[%clk 0:03:00]}  Nc6 {[%clk 0:02:49]} 6. c3 {[%clk 0:03:01]}  Nf6 {[%clk 0:02:47]} 7. d4 {[%clk 0:03:01]}  g6 {[%clk 0:02:46]} 8. d5 {[%clk 0:02:45]}  Ne5 {[%clk 0:02:43]} 9. Nxe5 {[%clk 0:02:45]}  dxe5 {[%clk 0:02:44]} 10. Nd2 {[%clk 0:02:41]}  Bg7 {[%clk 0:02:42]} 11. Re1 {[%clk 0:02:41]}  O-O {[%clk 0:02:40]} 12. Nc4 {[%clk 0:02:40]}  Qc7 {[%clk 0:02:39]} 13. a4 {[%clk 0:02:40]}  Nd7 {[%clk 0:02:36]} 14. Bg5 {[%clk 0:02:37]}  Bf6 {[%clk 0:02:27]} 15. Bh6 {[%clk 0:02:22]}  Bg7 {[%clk 0:02:26]} 16. Bg5 {[%clk 0:02:19]}  Bf6 {[%clk 0:02:26]} 17. Be3 {[%clk 0:02:20]}  a6 {[%clk 0:02:19]} 18. Qb3 {[%clk 0:02:15]}  Rab8 {[%clk 0:02:18]} 19. a5 {[%clk 0:02:13]}  Rfd8 {[%clk 0:02:03]} 20. Ra4 {[%clk 0:02:11]}  b5 {[%clk 0:01:58]} 21. axb6 {[%clk 0:02:09]}  Nxb6 {[%clk 0:01:58]} 22. Nxb6 {[%clk 0:01:59]}  Rxb6 {[%clk 0:01:56]} 23. Qa2 {[%clk 0:01:57]}  Rdb8 {[%clk 0:01:54]} 24. Re2 {[%clk 0:01:53]}  Ra8 {[%clk 0:01:49]} 25. Rc4 {[%clk 0:01:48]}  Rb5 {[%clk 0:01:47]} 26. b4 {[%clk 0:01:47]}  Rab8 {[%clk 0:01:43]} 27. Rxc5 {[%clk 0:01:41]}  Rxc5 {[%clk 0:01:40]} 28. Bxc5 {[%clk 0:01:41]}  Qb7 {[%clk 0:01:36]} 29. g3 {[%clk 0:01:38]}  Bg5 {[%clk 0:01:31]} 30. Qa4 {[%clk 0:01:29]}  Qb5 {[%clk 0:01:28]} 31. Qxb5 {[%clk 0:01:26]}  axb5 {[%clk 0:01:27]} 32. Ra2 {[%clk 0:01:26]}  e6 {[%clk 0:01:25]} 33. d6 {[%clk 0:01:26]}  Rd8 {[%clk 0:01:19]} 34. Ra5 {[%clk 0:01:21]}  Bd2 {[%clk 0:01:18]} 35. Rxb5 {[%clk 0:01:13]}  Bxc3 {[%clk 0:01:18]} 36. Rb7 {[%clk 0:01:13]}  Bd4 {[%clk 0:01:16]} 37. d7 {[%clk 0:01:11]}  f5 {[%clk 0:01:08]} 38. Be7 {[%clk 0:01:10]} 1-0


[Site "https://www.chess.com"]

[Event "Titled Tuesday Blitz February 21 Late 2023"]
[White "Zhang, Alan"]
[Black "Klenburg, Michael"]
[WhiteFideId "30936870"]
[BlackFideId "14102072"]
[WhiteElo "2001"]
[BlackElo "2325"]
[Result "0-1"]
[Round "01"]
[TimeControl "180+2"]
[Date "2023.02.21"]
[WhiteClock "0:00:01"]
[BlackClock "0:00:41"]

1. e4 {[%clk 0:02:54]}  d6 {[%clk 0:02:59]} 2. d4 {[%clk 0:02:54]}  Nf6 {[%clk 0:02:59]} 3. Nc3 {[%clk 0:02:54]}  g6 {[%clk 0:02:59]} 4. f3 {[%clk 0:02:55]}  c6 {[%clk 0:02:58]} 5. Be3 {[%clk 0:02:55]}  Nbd7 {[%clk 0:02:58]} 6. Qd2 {[%clk 0:02:56]}  b5 {[%clk 0:02:58]} 7. d5 {[%clk 0:02:55]}  cxd5 {[%clk 0:02:36]} 8. Nxd5 {[%clk 0:02:51]}  a6 {[%clk 0:02:33]} 9. Qc3 {[%clk 0:02:50]}  Nxd5 {[%clk 0:02:32]} 10. exd5 {[%clk 0:02:31]}  Nf6 {[%clk 0:02:32]} 11. a4 {[%clk 0:02:13]}  Bd7 {[%clk 0:02:29]} 12. a5 {[%clk 0:02:05]}  Bg7 {[%clk 0:02:27]} 13. Qd2 {[%clk 0:01:44]}  O-O {[%clk 0:02:25]} 14. g4 {[%clk 0:01:40]}  Qc7 {[%clk 0:02:20]} 15. Bb6 {[%clk 0:01:25]}  Qb7 {[%clk 0:02:19]} 16. O-O-O {[%clk 0:01:22]}  Rac8 {[%clk 0:02:04]} 17. g5 {[%clk 0:00:51]}  Nh5 {[%clk 0:02:01]} 18. Ne2 {[%clk 0:00:47]}  Bf5 {[%clk 0:01:59]} 19. c3 {[%clk 0:00:46]}  b4 {[%clk 0:01:55]} 20. Nd4 {[%clk 0:00:21]}  bxc3 {[%clk 0:01:54]} 21. bxc3 {[%clk 0:00:21]}  Qxd5 {[%clk 0:01:54]} 22. Bxa6 {[%clk 0:00:19]}  Rc5 {[%clk 0:01:20]} 23. Bxc5 {[%clk 0:00:14]}  Qxc5 {[%clk 0:01:20]} 24. Nxf5 {[%clk 0:00:15]}  Qxf5 {[%clk 0:01:17]} 25. Qd3 {[%clk 0:00:13]}  Qxa5 {[%clk 0:01:16]} 26. Kd2 {[%clk 0:00:08]}  Nf4 {[%clk 0:01:02]} 27. Qc4 {[%clk 0:00:08]}  Ne6 {[%clk 0:00:59]} 28. Ra1 {[%clk 0:00:06]}  Qxg5+ {[%clk 0:00:58]} 29. Kc2 {[%clk 0:00:03]}  Nc5 {[%clk 0:00:52]} 30. Bb5 {[%clk 0:00:02]}  Qf5+ {[%clk 0:00:51]} 31. Kb2 {[%clk 0:00:01]}  Rb8 {[%clk 0:00:49]} 32. Rhd1 {[%clk 0:00:01]}  Qxf3 {[%clk 0:00:44]} 33. Rf1 {[%clk 0:00:01]}  Qg2+ {[%clk 0:00:41]} 0-1


[Site "https://www.chess.com"]

[Event "Titled Tuesday Blitz February 21 Late 2023"]
[White "Chor, Kevin"]
[Black "Curtis, John"]
[WhiteFideId "2090740"]
[BlackFideId "3200256"]
[WhiteElo "1944"]
[BlackElo "2292"]
[Result "1-0"]
[Round "01"]
[TimeControl "180+2"]
[Date "2023.02.21"]
[WhiteClock "0:00:25"]
[BlackClock "0:00:04"]

1. e4 {[%clk 0:02:57]}  c5 {[%clk 0:02:58]} 2. Nf3 {[%clk 0:02:57]}  e6 {[%clk 0:02:59]} 3. d4 {[%clk 0:02:56]}  cxd4 {[%clk 0:02:58]} 4. Nxd4 {[%clk 0:02:57]}  a6 {[%clk 0:02:58]} 5. Nc3 {[%clk 0:02:57]}  Qc7 {[%clk 0:02:58]} 6. Bd3 {[%clk 0:02:54]}  b6 {[%clk 0:02:58]} 7. O-O {[%clk 0:02:50]}  Bb7 {[%clk 0:02:58]} 8. Kh1 {[%clk 0:02:43]}  Nc6 {[%clk 0:02:48]} 9. Nxc6 {[%clk 0:02:37]}  Bxc6 {[%clk 0:02:48]} 10. Qe2 {[%clk 0:02:33]}  Qb7 {[%clk 0:02:43]} 11. f4 {[%clk 0:02:19]}  Nf6 {[%clk 0:02:33]} 12. Bd2 {[%clk 0:02:01]}  Be7 {[%clk 0:02:18]} 13. e5 {[%clk 0:01:25]}  Nd5 {[%clk 0:02:11]} 14. Ne4 {[%clk 0:01:25]}  f5 {[%clk 0:01:59]} 15. exf6 {[%clk 0:01:13]}  Nxf6 {[%clk 0:01:51]} 16. Nxf6+ {[%clk 0:01:13]}  Bxf6 {[%clk 0:01:47]} 17. f5 {[%clk 0:01:13]}  e5 {[%clk 0:01:26]} 18. Rae1 {[%clk 0:01:03]}  d5 {[%clk 0:01:09]} 19. c4 {[%clk 0:00:53]}  dxc4 {[%clk 0:01:00]} 20. Bxc4 {[%clk 0:00:52]}  b5 {[%clk 0:00:50]} 21. Be6 {[%clk 0:00:44]}  Rd8 {[%clk 0:00:39]} 22. Qh5+ {[%clk 0:00:32]}  g6 {[%clk 0:00:31]} 23. fxg6 {[%clk 0:00:32]}  Bxg2+ {[%clk 0:00:14]} 24. Kg1 {[%clk 0:00:31]}  Qb6+ {[%clk 0:00:05]} 25. Be3 {[%clk 0:00:25]}  Qxe6 {[%clk 0:00:04]} 26. g7+ {[%clk 0:00:25]} 1-0


[Site "https://www.chess.com"]

[Event "Titled Tuesday Blitz February 21 Late 2023"]
[White "Marin Ramirez, Gerardo"]
[Black "Sztokbant, Bernardo Vainzoff"]
[WhiteFideId "3901068"]
[BlackFideId "2115956"]
[WhiteElo "2127"]
[BlackElo "2213"]
[Result "0-1"]
[Round "01"]
[TimeControl "180+2"]
[Date "2023.02.21"]
[WhiteClock "0:00:06"]
[BlackClock "0:01:25"]

1. d4 {[%clk 0:02:48]}  d5 {[%clk 0:02:57]} 2. Nf3 {[%clk 0:02:42]}  Nf6 {[%clk 0:02:55]} 3. c4 {[%clk 0:02:41]}  e6 {[%clk 0:02:54]} 4. Nc3 {[%clk 0:02:41]}  Be7 {[%clk 0:02:54]} 5. Bg5 {[%clk 0:02:39]}  O-O {[%clk 0:02:54]} 6. e3 {[%clk 0:02:39]}  h6 {[%clk 0:02:52]} 7. Bh4 {[%clk 0:02:38]}  b6 {[%clk 0:02:52]} 8. cxd5 {[%clk 0:02:32]}  Nxd5 {[%clk 0:02:49]} 9. Bg3 {[%clk 0:02:31]}  Bb7 {[%clk 0:02:49]} 10. Be2 {[%clk 0:02:27]}  Nd7 {[%clk 0:02:48]} 11. O-O {[%clk 0:02:26]}  c5 {[%clk 0:02:48]} 12. Nxd5 {[%clk 0:02:23]}  Bxd5 {[%clk 0:02:48]} 13. Qa4 {[%clk 0:02:12]}  cxd4 {[%clk 0:02:44]} 14. exd4 {[%clk 0:02:10]}  Nf6 {[%clk 0:02:38]} 15. Ne5 {[%clk 0:02:02]}  Ne4 {[%clk 0:02:28]} 16. Bf4 {[%clk 0:01:50]}  Bg5 {[%clk 0:02:22]} 17. Bxg5 {[%clk 0:00:50]}  Qxg5 {[%clk 0:02:23]} 18. f4 {[%clk 0:00:43]}  Qe7 {[%clk 0:02:15]} 19. Rfd1 {[%clk 0:00:29]}  Qh4 {[%clk 0:02:08]} 20. Rf1 {[%clk 0:00:19]}  Rac8 {[%clk 0:01:59]} 21. Bd3 {[%clk 0:00:15]}  Nf6 {[%clk 0:01:27]} 22. Qd1 {[%clk 0:00:06]}  Rc7 {[%clk 0:01:25]} 0-1


[Site "https://www.chess.com"]